fUST/lending_fUST_20260125
["ID","MTS","AMOUNT","RATE_DAILY","PERIOD"]
[403224658,1769272251902,-500.0,0.00013972,2]
[403224659,1769272251912,-500.0,0.00013972,2]
[403224660,1769272251921,-500.0,0.00013972,2]
[403224661,1769272251931,-545.62722079,0.00013972,2]
[403224662,1769272251941,-500.0,0.00013972,2]
[403224663,1769272251950,-500.0,0.00013972,2]
[403224664,1769272251960,-500.0,0.00013972,2]
[403224665,1769272251969,-500.0,0.00013972,2]
[403224666,1769272251979,-256.98632785,0.00013972,2]
[403224667,1769272251988,-2289.03,0.00013972,2]
[403224668,1769272251998,-500.0,0.00013972,2]
[403224669,1769272252007,-500.0,0.00013972,2]
[403224670,1769272252017,-260.06193805,0.00013972,2]
[403224671,1769272252027,-500.0,0.00013972,2]
[403224672,1769272252036,-486.50516995,0.00013972,2]
[403224673,1769272252044,-500.0,0.00013972,2]
[403224674,1769272252053,-609.59,0.00013972,2]
[403224675,1769272252062,-500.0,0.00013972,2]
[403224676,1769272252071,-500.0,0.00013972,2]
[403224677,1769272252079,-500.0,0.00013972,2]
[403224678,1769272252088,-500.0,0.00013972,2]
[403224679,1769272252098,-500.0,0.00013972,2]
[403224680,1769272252108,-500.0,0.00013972,2]
[403224681,1769272252117,-500.0,0.00013972,2]
[403224682,1769272252126,-500.0,0.00013972,2]
[403224683,1769272252135,-500.0,0.00013972,2]
[403224684,1769272252144,-500.0,0.00013972,2]
[403224685,1769272252153,-500.0,0.00013972,2]
[403224686,1769272252163,-500.0,0.00013972,2]
[403224687,1769272252172,-250.0,0.00014,2]
[403224688,1769272252180,-250.6,0.00014,2]
[403224689,1769272252189,-18957.8339427,0.00014006,2]
[403224690,1769272252198,-151.0,0.00014006,2]
[403224691,1769272252207,-10000.0,0.00014008,2]
[403224692,1769272252217,-1317.24,0.00014008,2]
[403224693,1769272252225,-10000.0,0.00014008,2]
[403224694,1769272252234,-1041.66666667,0.00014032,2]
[403224695,1769272252243,-160.0,0.00014032,2]
[403224696,1769272252252,-500.0,0.00014109,2]
[403224697,1769272252261,-500.0,0.00014109,2]
[403224698,1769272252270,-500.0,0.00014109,2]
[403224699,1769272252279,-500.0,0.00014109,2]
[403224700,1769272252288,-500.0,0.00014109,2]
[403224701,1769272252297,-500.0,0.00014109,2]
[403224702,1769272252305,-574.12855637,0.00014143,2]
[403224703,1769272252314,-2773.56790519,0.00014143,2]
[403224704,1769272252323,-10000.0,0.00014151,2]
[403224705,1769272252332,-10000.0,0.00014151,2]
[403224706,1769272252341,-10000.0,0.00014151,2]
[403224707,1769272252350,-10000.0,0.00014151,2]
[403224708,1769272252360,-208.008756,0.00014151,2]
[403224709,1769272252369,-208.008756,0.00014151,2]
[403224710,1769272252377,-208.008756,0.00014151,2]
[403224711,1769272252387,-208.008756,0.00014151,2]
[403224712,1769272252398,-236.885953,0.00014151,2]
[403224713,1769272252408,-236.885953,0.00014151,2]
[403224714,1769272252417,-236.885953,0.00014151,2]
[403224715,1769272252427,-236.885953,0.00014151,2]
[403224716,1769272252436,-348.91,0.0001422,2]
[403224717,1769272252445,-587.0,0.0001422,2]
[403224718,1769272252455,-600.0,0.00014221,2]
[403224719,1769272252464,-200.0,0.00014245,2]
[403224720,1769272252473,-224.81095791,0.00014245,2]
[403224721,1769272252483,-160.0,0.00014245,2]
[403224722,1769272252495,-200.3701185,0.00014245,2]
[403224723,1769272252504,-160.0,0.00014245,2]
[403224724,1769272252513,-500.0,0.00014246,2]
[403224725,1769272252522,-500.0,0.00014246,2]
[403224726,1769272252531,-550.0,0.00014246,2]
[403224727,1769272252540,-500.0,0.00014246,2]
[403224728,1769272252550,-500.0,0.00014246,2]
[403224729,1769272252559,-500.0,0.00014246,2]
[403224730,1769272252571,-500.0,0.00014246,2]
[403224731,1769272252584,-500.0,0.00014246,2]
[403224732,1769272252593,-502.28397969,0.00014246,2]
[403224733,1769272252603,-500.82122581,0.00014246,2]
[403224734,1769272252612,-500.0,0.00014246,2]
[403224735,1769272252621,-501.65562602,0.00014246,2]
[403224736,1769272252631,-500.0,0.00014246,2]
[403224737,1769272252640,-500.0,0.00014246,2]
[403224738,1769272252650,-500.0,0.00014246,2]
[403224739,1769272252660,-501.19874347,0.00014246,2]
[403224740,1769272252669,-12495.03760526,0.00014246,2]
[403224741,1769272252679,-502.06914417,0.00014246,2]
[403224742,1769272252688,-480.94231574,0.00014246,2]
[403224743,1769272252698,-220.50016455,0.00014246,2]
[403224744,1769272252708,-500.0,0.00014246,2]
[403224745,1769272252717,-500.0,0.00014246,2]
[403224746,1769272252726,-500.0,0.00014246,2]
[403224747,1769272252735,-500.0,0.00014246,2]
[403224749,1769272252744,-500.0,0.00014246,2]
[403224750,1769272252755,-500.63064585,0.00014246,2]
[403224751,1769272252767,-500.34341172,0.00014246,2]
[403224752,1769272252776,-500.0,0.00014246,2]
[403224753,1769272252785,-500.0,0.00014246,2]
[403224754,1769272252794,-501.03343119,0.00014246,2]
[403224755,1769272252805,-571.73335883,0.00014246,2]
[403224756,1769272252815,-500.0,0.00014246,2]
[403224757,1769272252824,-500.0,0.00014246,2]
[403224758,1769272252836,-500.0,0.00014246,2]
[403224759,1769272252845,-500.0,0.00014246,2]
[403224760,1769272252854,-500.0,0.00014246,2]
[403224761,1769272252863,-500.0,0.00014246,2]
[403224762,1769272252872,-500.0,0.00014246,2]
[403224763,1769272252881,-500.0,0.00014246,2]
[403224764,1769272252891,-528.23737385,0.00014246,2]
[403224765,1769272252900,-601.97,0.00014246,2]
[403224766,1769272252910,-304.22734097,0.00014246,2]
[403224767,1769272252919,-500.63586145,0.00014246,2]
[403224768,1769272252928,-501.46790266,0.00014246,2]
[403224769,1769272252937,-500.0,0.00014246,2]
[403224770,1769272252947,-500.0,0.00014246,2]
[403224771,1769272252956,-500.0,0.00014246,2]
[403224772,1769272252965,-500.0,0.00014246,2]
[403224773,1769272252974,-500.0,0.00014246,2]
[403224774,1769272252983,-500.5161639,0.00014246,2]
[403224775,1769272252993,-500.0,0.00014246,2]
[403224776,1769272253003,-500.0,0.00014246,2]
[403224777,1769272253012,-500.0,0.00014246,2]
[403224778,1769272253021,-500.67795239,0.00014246,2]
[403224779,1769272253031,-500.0,0.00014246,2]
[403224780,1769272253040,-500.0,0.00014246,2]
[403224781,1769272253050,-500.0,0.00014246,2]
[403224782,1769272253059,-500.69083149,0.00014246,2]
[403224783,1769272253069,-500.0,0.00014246,2]
[403224784,1769272253078,-500.0,0.00014246,2]
[403224785,1769272253087,-500.0,0.00014246,2]
[403224786,1769272253097,-500.0,0.00014246,2]
[403224787,1769272253106,-500.0,0.00014246,2]
[403224788,1769272253116,-500.0,0.00014246,2]
[403224789,1769272253126,-500.0,0.00014246,2]
[403224790,1769272253136,-500.0,0.00014246,2]
[403224791,1769272253146,-500.0,0.00014246,2]
[403224792,1769272253155,-500.0,0.00014246,2]
[403224793,1769272253165,-500.0,0.00014246,2]
[403224794,1769272253175,-500.0,0.00014246,2]
[403224795,1769272253185,-500.0,0.00014246,2]
[403224796,1769272253196,-500.0,0.00014246,2]
[403224797,1769272253206,-500.0,0.00014246,2]
[403224798,1769272253215,-500.0,0.00014246,2]
[403224799,1769272253226,-500.0,0.00014246,2]
[403224800,1769272253235,-500.0,0.00014246,2]
[403224801,1769272253246,-500.0,0.00014246,2]
[403224802,1769272253256,-500.0,0.00014246,2]
[403224803,1769272253265,-500.0,0.00014246,2]
[403224804,1769272253275,-500.0,0.00014246,2]
[403224805,1769272253285,-500.0,0.00014246,2]
[403224806,1769272253295,-500.0,0.00014246,2]
[403224807,1769272253305,-500.0,0.00014246,2]
[403224808,1769272253314,-500.0,0.00014246,2]
[403224809,1769272253324,-500.0,0.00014246,2]
[403224810,1769272253333,-500.0,0.00014246,2]
[403224811,1769272253342,-500.0,0.00014246,2]
[403224812,1769272253352,-500.0,0.00014246,2]
[403224813,1769272253361,-500.0,0.00014246,2]
[403224814,1769272253370,-548.82210177,0.00014246,2]
[403224815,1769272253379,-500.0,0.00014246,2]
[403224816,1769272253389,-500.0,0.00014246,2]
[403224817,1769272253399,-500.0,0.00014246,2]
[403224818,1769272253408,-500.0,0.00014246,2]
[403224819,1769272253418,-500.0,0.00014246,2]
[403224820,1769272253428,-500.46995948,0.00014246,2]
[403224821,1769272253438,-500.0,0.00014246,2]
[403224822,1769272253447,-500.0,0.00014246,2]
[403224823,1769272253457,-500.0,0.00014246,2]
[403224824,1769272253467,-500.0,0.00014246,2]
[403224825,1769272253477,-155.37308246,0.00014246,2]
[403224826,1769272253486,-500.0,0.00014246,2]
[403224827,1769272253496,-500.0,0.00014246,2]
[403224828,1769272253504,-500.0,0.00014246,2]
[403224829,1769272253575,-500.0,0.00014246,2]
[403224830,1769272253585,-520.14,0.00014246,2]
[403224831,1769272253595,-500.0,0.00014246,2]
[403224832,1769272253604,-500.0,0.00014246,2]
[403224833,1769272253613,-500.0,0.00014246,2]
[403224834,1769272253622,-500.0,0.00014246,2]
[403224835,1769272253632,-500.0,0.00014246,2]
[403224836,1769272253641,-500.0,0.00014246,2]
[403224837,1769272253651,-500.0,0.00014246,2]
[403224838,1769272253660,-500.0,0.00014246,2]
[403224839,1769272253670,-500.0,0.00014246,2]
[403224840,1769272253679,-500.0,0.00014246,2]
[403224841,1769272253693,-500.0,0.00014246,2]
[403224842,1769272253713,-500.0,0.00014246,2]
[403224843,1769272253722,-500.0,0.00014246,2]
[403224844,1769272253743,-500.0,0.00014246,2]
[403224845,1769272253763,-487.3930952,0.00014246,2]
[403224846,1769272253780,-500.0,0.00014246,2]
[403224847,1769272253790,-500.0,0.00014246,2]
[403224848,1769272253800,-500.0,0.00014246,2]
[403224849,1769272253809,-500.0,0.00014246,2]
[403224850,1769272253818,-500.0,0.00014246,2]
[403224851,1769272253827,-364.01,0.00014246,2]
[403224852,1769272253837,-500.0,0.00014246,2]
[403224853,1769272253847,-500.0,0.00014246,2]
[403224854,1769272253856,-500.0,0.00014246,2]
[403224855,1769272253865,-500.0,0.00014246,2]
[403224856,1769272253875,-500.0,0.00014246,2]
[403224857,1769272253884,-500.0,0.00014246,2]
[403224858,1769272253894,-500.0,0.00014246,2]
[403224859,1769272253903,-500.0,0.00014246,2]
[403224860,1769272253912,-500.0,0.00014246,2]
[403224861,1769272253922,-500.0,0.00014246,2]
[403224862,1769272253931,-500.0,0.00014246,2]
[403224863,1769272253941,-500.0,0.00014246,2]
[403224864,1769272253950,-500.0,0.00014246,2]
[403224865,1769272253959,-500.0,0.00014246,2]
[403224866,1769272253967,-500.0,0.00014246,2]
[403224867,1769272253976,-500.0,0.00014246,2]
[403224868,1769272253986,-500.0,0.00014246,2]
[403224869,1769272253995,-500.0,0.00014246,2]
[403224870,1769272254006,-208.008756,0.00014246,2]
[403224871,1769272254015,-500.0,0.00014246,2]
[403224872,1769272254025,-208.008756,0.00014246,2]
[403224873,1769272254034,-500.0,0.00014246,2]
[403224874,1769272254044,-500.0,0.00014246,2]
[403224875,1769272254054,-208.008756,0.00014246,2]
[403224876,1769272254066,-208.008749,0.00014246,2]
[403224877,1769272254076,-500.0,0.00014246,2]
[403224878,1769272254085,-500.0,0.00014246,2]
[403224879,1769272254095,-500.0,0.00014246,2]
[403224880,1769272254105,-500.0,0.00014246,2]
[403224881,1769272254114,-500.0,0.00014246,2]
[403224882,1769272254123,-500.0,0.00014246,2]
[403224883,1769272254132,-534.82,0.00014246,2]
[403224884,1769272254141,-500.0,0.00014246,2]
[403224885,1769272254151,-345.03439842,0.00014246,2]
[403224886,1769272254162,-500.0,0.00014246,2]
[403224887,1769272254172,-500.0,0.00014246,2]
[403224888,1769272254182,-500.0,0.00014246,2]
[403224889,1769272254192,-500.0,0.00014246,2]
[403224890,1769272254201,-500.0,0.00014246,2]
[403224891,1769272254210,-500.0,0.00014246,2]
[403224892,1769272254220,-500.0,0.00014246,2]
[403224893,1769272254229,-500.0,0.00014246,2]
[403224894,1769272254239,-500.0,0.00014246,2]
[403224895,1769272254248,-500.0,0.00014246,2]
[403224896,1769272254258,-500.0,0.00014246,2]
[403224897,1769272254267,-500.0,0.00014246,2]
[403224898,1769272254276,-500.0,0.00014246,2]
[403224899,1769272254286,-500.0,0.00014246,2]
[403224900,1769272254295,-500.0,0.00014246,2]
[403224901,1769272254305,-500.0,0.00014246,2]
[403224902,1769272254315,-353.98974306,0.00014246,2]
[403224903,1769272254324,-500.0,0.00014246,2]
[403224904,1769272254333,-505.38307343,0.00014246,2]
[403224905,1769272254343,-500.0,0.00014246,2]
[403224906,1769272254352,-500.0,0.00014246,2]
[403224907,1769272254362,-500.0,0.00014246,2]
[403224908,1769272254371,-500.0,0.00014246,2]
[403224909,1769272254381,-500.0,0.00014246,2]
[403224910,1769272254391,-500.0,0.00014246,2]
[403224911,1769272254400,-500.0,0.00014246,2]
[403224912,1769272254410,-500.0,0.00014246,2]
[403224913,1769272254419,-500.0,0.00014246,2]
[403224914,1769272254429,-236.885953,0.00014246,2]
[403224915,1769272254438,-236.885953,0.00014246,2]
[403224916,1769272254447,-500.0,0.00014246,2]
[403224917,1769272254457,-500.0,0.00014246,2]
[403224918,1769272254466,-500.0,0.00014246,2]
[403224919,1769272254476,-236.885953,0.00014246,2]
[403224920,1769272254485,-236.885959,0.00014246,2]
[403224921,1769272254494,-500.0,0.00014246,2]
[403224922,1769272254503,-500.0,0.00014246,2]
[403224923,1769272254512,-500.0,0.00014246,2]
[403224924,1769272254522,-500.0,0.00014246,2]
[403224925,1769272254531,-500.0,0.00014246,2]
[403224926,1769272254541,-500.0,0.00014246,2]
[403224927,1769272254550,-47.77390889,0.00014246,2]
[403224936,1769272255506,387.49,9.499e-05,2]
[403224937,1769272255678,774.98,0.00010363,2]
[403224938,1769272256136,-383.71407802,0.00011227,2]
[403224939,1769272317970,367.81,9.517e-05,2]
[403224940,1769272318895,735.62,0.00010382,2]
[403224962,1769272398672,353.77,9.515e-05,2]
[403224963,1769272399089,707.54,0.0001038,2]
[403224965,1769272478836,340.26,9.522e-05,2]
[403224966,1769272479317,680.52,0.00010388,2]
[403224972,1769272558027,327.27,9.484e-05,2]
[403224973,1769272558423,654.54,0.00010347,2]
[403225031,1769272637416,314.77,9.495e-05,2]
[403225032,1769272637813,629.55,0.00010358,2]
[403225056,1769272716442,302.75,9.514e-05,2]
[403225057,1769272716855,605.51,0.00010378,2]
[403225117,1769272795424,291.2,9.538e-05,2]
[403225118,1769272795812,582.39,0.00010406,2]
[403225141,1769272876665,280.08,9.527e-05,2]
[403225142,1769272877057,560.15,0.00010393,2]
[403225159,1769272956297,269.38,9.528e-05,2]
[403225160,1769272956679,538.77,0.00010394,2]
[403225244,1769273034248,259.1,9.529e-05,2]
[403225245,1769273034679,518.19,0.00010396,2]
[403225248,1769273112637,249.2,9.558e-05,2]
[403225249,1769273113039,498.41,0.00010427,2]
[403225256,1769273198627,239.69,9.565e-05,2]
[403225257,1769273199104,479.38,0.00010434,2]
[403225291,1769273280824,230.54,9.515e-05,2]
[403225292,1769273281287,461.08,0.0001038,2]
[403225340,1769273367019,221.74,9.482e-05,2]
[403225341,1769273367413,443.47,0.00010344,2]
[403225375,1769273431810,-665.21,0.00011206,2]
[403225376,1769273431819,-577.0,0.00011206,2]
[403225377,1769273431828,-288.33068189,0.00011284,2]
[403225378,1769273431838,-255.915,0.0001156,2]
[403225379,1769273431847,-300.0,0.00011695,2]
[403225380,1769273431857,-10000.01,0.00011696,2]
[403225381,1769273431866,-300.0,0.00011794,2]
[403225383,1769273431875,-500.0,0.00011795,2]
[403225384,1769273431884,-322.51040949,0.00011795,2]
[403225385,1769273431893,-500.0,0.00011795,2]
[403225386,1769273431902,-500.0,0.00011795,2]
[403225387,1769273431910,-500.0,0.00011795,2]
[403225388,1769273431919,-316.13431179,0.00011795,2]
[403225390,1769273431928,-333.78919578,0.00011831,2]
[403225391,1769273431938,-300.0,0.00012031,2]
[403225392,1769273431946,-300.0,0.00012031,2]
[403225393,1769273431955,-300.0,0.00012031,2]
[403225394,1769273431964,-300.0,0.00012031,2]
[403225395,1769273431973,-300.0,0.00012031,2]
[403225396,1769273431982,-300.0,0.00012031,2]
[403225397,1769273431991,-300.0,0.00012031,2]
[403225398,1769273432002,-300.0,0.00012031,2]
[403225399,1769273432010,-300.0,0.00012031,2]
[403225400,1769273432019,-300.0,0.00012031,2]
[403225401,1769273432028,-300.0,0.00012031,2]
[403225402,1769273432037,-300.0,0.00012031,2]
[403225403,1769273432048,-300.0,0.00012031,2]
[403225404,1769273432058,-300.0,0.00012031,2]
[403225405,1769273432068,-300.0,0.00012031,2]
[403225406,1769273432077,-600.0,0.00012031,2]
[403225407,1769273432086,-886.94,0.00012068,2]
[403225408,1769273432095,-514.84070869,0.00012457,2]
[403225409,1769273432104,-2487.15318209,0.00012457,2]
[403225410,1769273432113,-374.17532358,0.00012496,2]
[403225411,1769273432123,-420.0,0.00012842,2]
[403225412,1769273432133,-1108.68,0.0001293,2]
[403225413,1769273432142,-533.88981491,0.00013005,2]
[403225414,1769273432152,-2579.17784983,0.00013005,2]
[403225415,1769273432161,-179.50812141,0.00013179,2]
[403225416,1769273432170,-720.0,0.00013234,2]
[403225417,1769273432179,-219.65020728,0.0001324,2]
[403225418,1769273432189,-500.0,0.0001324,2]
[403225419,1769273432198,-500.0,0.0001324,2]
[403225420,1769273432207,-500.0,0.0001324,2]
[403225421,1769273432216,-500.0,0.0001324,2]
[403225422,1769273432226,-500.0,0.0001324,2]
[403225423,1769273432234,-500.0,0.00013273,2]
[403225424,1769273432244,-500.0,0.00013273,2]
[403225425,1769273432252,-500.0,0.00013273,2]
[403225426,1769273432261,-500.0,0.00013273,2]
[403225427,1769273432270,-500.0,0.00013273,2]
[403225428,1769273432280,-500.0,0.00013273,2]
[403225429,1769273432289,-500.0,0.00013273,2]
[403225430,1769273432299,-340.23020463,0.00013284,2]
[403225431,1769273432308,-553.64373807,0.00013553,2]
[403225432,1769273432322,-1808.86155703,0.00013553,2]
[403225433,1769273432332,-300.0,0.00013673,2]
[403225434,1769273432341,-155.0,0.00013697,2]
[403225435,1769273432351,-151.0,0.00013698,2]
[403225436,1769273432362,-500.0,0.00013698,2]
[403225437,1769273432372,-500.0,0.00013698,2]
[403225438,1769273432381,-500.0,0.00013698,2]
[403225439,1769273432391,-500.0,0.00013698,2]
[403225440,1769273432400,-500.0,0.00013698,2]
[403225441,1769273432410,-304.2567553,0.00013698,2]
[403225442,1769273432419,-500.0,0.00013698,2]
[403225443,1769273432428,-500.0,0.00013698,2]
[403225444,1769273432437,-500.0,0.00013698,2]
[403225445,1769273432447,-500.0,0.00013698,2]
[403225446,1769273432456,-500.0,0.00013698,2]
[403225447,1769273432466,-500.0,0.00013698,2]
[403225448,1769273432476,-500.0,0.00013698,2]
[403225449,1769273432486,-500.0,0.00013698,2]
[403225450,1769273432495,-500.0,0.00013698,2]
[403225451,1769273432505,-500.0,0.00013698,2]
[403225452,1769273432515,-500.0,0.00013698,2]
[403225453,1769273432524,-500.0,0.00013698,2]
[403225454,1769273432533,-353.98974306,0.00013698,2]
[403225455,1769273432543,-500.0,0.00013698,2]
[403225456,1769273432552,-505.38307343,0.00013698,2]
[403225457,1769273432561,-500.0,0.00013698,2]
[403225458,1769273432570,-500.0,0.00013698,2]
[403225459,1769273432580,-500.0,0.00013698,2]
[403225460,1769273432589,-500.0,0.00013698,2]
[403225461,1769273432598,-500.0,0.00013698,2]
[403225462,1769273432608,-500.0,0.00013698,2]
[403225463,1769273432617,-500.0,0.00013698,2]
[403225464,1769273432627,-500.0,0.00013698,2]
[403225465,1769273432636,-500.0,0.00013698,2]
[403225466,1769273432645,-500.0,0.00013698,2]
[403225467,1769273432655,-500.0,0.00013698,2]
[403225468,1769273432664,-500.0,0.00013698,2]
[403225469,1769273432674,-500.0,0.00013698,2]
[403225470,1769273432683,-500.0,0.00013698,2]
[403225471,1769273432692,-500.0,0.00013698,2]
[403225472,1769273432702,-603.90655972,0.00013698,2]
[403225473,1769273432712,-500.0,0.00013698,2]
[403225474,1769273432722,-500.0,0.00013698,2]
[403225475,1769273432731,-500.0,0.00013698,2]
[403225476,1769273432742,-500.0,0.00013698,2]
[403225477,1769273432751,-500.0,0.00013698,2]
[403225478,1769273432760,-500.0,0.00013698,2]
[403225479,1769273432770,-500.0,0.00013698,2]
[403225480,1769273432779,-500.0,0.00013698,2]
[403225481,1769273432789,-500.0,0.00013698,2]
[403225482,1769273432798,-500.0,0.00013698,2]
[403225483,1769273432807,-500.0,0.00013698,2]
[403225484,1769273432816,-500.0,0.00013698,2]
[403225485,1769273432826,-500.0,0.00013698,2]
[403225486,1769273432836,-500.0,0.00013698,2]
[403225487,1769273432846,-500.0,0.00013698,2]
[403225488,1769273432855,-500.0,0.00013698,2]
[403225489,1769273432864,-500.0,0.00013698,2]
[403225490,1769273432874,-500.0,0.00013698,2]
[403225491,1769273432883,-500.0,0.00013698,2]
[403225492,1769273432892,-500.0,0.00013698,2]
[403225493,1769273432901,-500.0,0.00013698,2]
[403225494,1769273432910,-500.0,0.00013698,2]
[403225495,1769273432919,-500.0,0.00013698,2]
[403225496,1769273432929,-500.0,0.00013698,2]
[403225497,1769273432939,-533.57,0.00013698,2]
[403225498,1769273432949,-500.0,0.00013698,2]
[403225499,1769273432958,-560.28415884,0.00013698,2]
[403225500,1769273432968,-500.0,0.00013698,2]
[403225501,1769273432978,-1000.0,0.00013698,2]
[403225502,1769273432987,-598.65,0.00013698,2]
[403225503,1769273432996,-500.0,0.00013698,2]
[403225504,1769273433006,-500.0,0.00013698,2]
[403225505,1769273433016,-500.0,0.00013698,2]
[403225506,1769273433025,-500.0,0.00013698,2]
[403225507,1769273433035,-1051.2,0.00013698,2]
[403225508,1769273433043,-500.0,0.00013698,2]
[403225509,1769273433052,-500.0,0.00013698,2]
[403225510,1769273433062,-500.0,0.00013698,2]
[403225511,1769273433071,-500.0,0.00013698,2]
[403225512,1769273433079,-500.0,0.00013698,2]
[403225513,1769273433088,-500.0,0.00013698,2]
[403225514,1769273433097,-500.0,0.00013698,2]
[403225515,1769273433106,-570.15574005,0.00013698,2]
[403225516,1769273433115,-500.0,0.00013698,2]
[403225517,1769273433124,-500.0,0.00013698,2]
[403225518,1769273433132,-500.0,0.00013698,2]
[403225519,1769273433141,-500.0,0.00013698,2]
[403225520,1769273433150,-500.0,0.00013698,2]
[403225521,1769273433159,-500.0,0.00013698,2]
[403225522,1769273433168,-1197.92,0.00013698,2]
[403225523,1769273433178,-500.0,0.00013698,2]
[403225524,1769273433186,-500.0,0.00013698,2]
[403225525,1769273433195,-500.0,0.00013698,2]
[403225526,1769273433204,-500.0,0.00013698,2]
[403225527,1769273433214,-500.0,0.00013698,2]
[403225528,1769273433224,-500.0,0.00013698,2]
[403225529,1769273433233,-500.0,0.00013698,2]
[403225530,1769273433243,-500.0,0.00013698,2]
[403225531,1769273433253,-500.0,0.00013698,2]
[403225532,1769273433262,-500.0,0.00013698,2]
[403225533,1769273433271,-500.0,0.00013698,2]
[403225534,1769273433281,-276.65958537,0.00013698,2]
[403225535,1769273433295,-962.89,0.00013698,2]
[403225536,1769273433314,-500.0,0.00013698,2]
[403225537,1769273433335,-500.0,0.00013698,2]
[403225538,1769273433354,-500.0,0.00013698,2]
[403225539,1769273433364,-1458.28,0.00013698,2]
[403225540,1769273433374,-500.0,0.00013698,2]
[403225541,1769273433384,-500.0,0.00013698,2]
[403225542,1769273433394,-500.0,0.00013698,2]
[403225543,1769273433403,-625.89,0.00013698,2]
[403225544,1769273433412,-500.0,0.00013698,2]
[403225545,1769273433421,-500.0,0.00013698,2]
[403225546,1769273433431,-500.0,0.00013698,2]
[403225547,1769273433440,-254.34440922,0.00013698,2]
[403225554,1769273437864,-1854.65164766,0.00011795,2]
[403225555,1769273437917,-30495.23907091,0.00011795,2]
[403225869,1769273443221,-361.0,0.00011795,2]
[403225871,1769273443233,-4802.38725604,0.00011795,2]
[403225873,1769273443245,-525.328232,0.00011795,2]
[403225893,1769273443431,-282.14530168,0.00011795,2]
[403226195,1769273446203,-2505.71699154,0.00011795,2]
[403226546,1769273451498,179.4,9.482e-05,2]
[403226547,1769273452269,358.81,0.00010343,2]
[403226562,1769273533966,172.55,9.484e-05,2]
[403226563,1769273534444,345.11,0.00010346,2]
[403226575,1769273554975,6120.63,0.000109,2]
[403226576,1769273555213,7430.37,0.000109,2]
[403226586,1769273571092,-2835.4153703,0.00010968,2]
[403226608,1769273618199,165.97,9.487e-05,2]
[403226609,1769273618809,331.93,0.00010349,2]
[403226616,1769273670444,-5000.0,0.00011093,2]
[403226617,1769273670483,-497.9,0.00011211,2]
[403226618,1769273670524,-275.75946416,0.000115,2]
[403226619,1769273670562,-300.0,0.0001183,2]
[403226620,1769273670601,-388285.08938589,0.00011831,2]
[403226621,1769273670619,-5000.0,0.00011831,2]
[403226622,1769273670635,-497.9,0.00011831,2]
[403226623,1769273670651,-275.75946416,0.00011831,2]
[403226624,1769273670662,-300.0,0.00011831,2]
[403226625,1769273670673,-99567.59168579,0.00011831,2]
[403226641,1769273700263,255.08,9.589e-05,2]
[403226642,1769273700732,510.16,0.0001046,2]
[403226643,1769273754767,506.43226942,0.00010786,2]